Workbook

Sheet 1全
A1: 2025年11月农村低保“一卡通”补助市镇分担发放表
A2: 序号 | B2: 行政区划 | C2: 户数 | D2: 人数 | E2: 农村低保 | H2: 备注
E3: 小计 | F3: 市负担70% | G3: 镇负担30%
A4: 1 | B4: 汇龙镇 | C4: 200 | D4: 256 | E4: 222853.00 | F4: =E4*0.7 -> 155997.10 | G4: =E4*0.3 -> 66855.90
A5: 2 | B5: 南阳镇 | C5: 359 | D5: 477 | E5: 421089.00 | F5: =E5*0.7 -> 294762.30 | G5: =E5*0.3 -> 126326.70
A6: 3 | B6: 北新镇 | C6: 308 | D6: 380 | E6: 333973.00 | F6: =E6*0.7 -> 233781.10 | G6: 100191.90
A7: 4 | B7: 王鲍镇 | C7: 344 | D7: 432 | E7: 369400.00 | F7: 258580.00 | G7: 110820.00
A8: 5 | B8: 合作镇 | C8: 323 | D8: 424 | E8: =345203-885 -> 344318.00 | F8: 241022.60 | G8: 103295.40
A9: 6 | B9: 海复镇 | C9: 249 | D9: 368 | E9: =316716+898 -> 317614.00 | F9: 222329.80 | G9: 95284.20
A10: 7 | B10: 近海镇 | C10: 248 | D10: 291 | E10: 257623.00 | F10: 180336.10 | G10: 77286.90
A11: 8 | B11: 寅阳镇 | C11: 264 | D11: 358 | E11: 321885.00 | F11: 225319.50 | G11: 96565.50
A12: 9 | B12: 惠萍镇 | C12: 226 | D12: 277 | E12: =246851-1062 -> 245789.00 | F12: 172052.30 | G12: 73736.70
A13: 10 | B13: 东海镇 | C13: 370 | D13: 460 | E13: =399684-974 -> 398710.00 | F13: 279097.00 | G13: 119613.00
A14: 11 | B14: 启隆镇 | C14: 1 | D14: 3 | E14: 2646.00 | F14: 1852.20 | G14: 793.80
A15: 12 | B15: 启东经济开发区 | C15: 57 | D15: 76 | E15: 66018.00 | F15: 46212.60 | G15: 19805.40
A16: 13 | B16: 圆陀角旅游度假区 | C16: 49 | D16: 66 | E16: 53678.00 | F16: 37574.60 | G16: 16103.40
B17: 合计 | C17: =SUM(C4:C16) -> 2998 | D17: =SUM(D4:D16) -> 3868 | E17: =SUM(E4:E16) -> 3355596.00 | F17: 2348917.20 | G17: 1006678.80

Sheet 吕四
A1: 2025年11月农村低保“一卡通”补助市镇分担发放表
A2: 序号 | B2: 行政区划 | C2: 户数 | D2: 人数 | E2: 农村低保 | H2: 备注
E3: 小计 | F3: 市负担0% | G3: 镇负担100%
A4: 1 | B4: 吕四港镇 | C4: 508 | D4: 670 | E4: =580908-1105 -> 579803.00 | F4: 0.00 | G4: =E4 -> 579803.00
B16: 合计 | C16: =SUM(C4:C15) -> 508 | D16: =SUM(D4:D15) -> 670 | E16: =SUM(E4:E15) -> 579803.00 | F16: =SUM(F4:F15) -> 0.00 | G16: =SUM(G4:G15) -> 579803.00

Sheet Sheet3
